Cogmind - Beta 16 @@@ ROGUE MODE // 2025.12.13 @ 16:20:37 Player: WitherScout Result: Self-destructed Performance ------------- Evolutions (1) 500 Regions Visited (2) 400 Robots Destroyed (15) 75 Value Destroyed (396) 396 Prototype IDs (1) 20 Alien Tech Used (0) 0 Bonus (0) 0 TOTAL SCORE: 1391 Bonus ------- None Cogmind --------- Core Integrity 400/400 Matter 232/300 Energy 265/265 System Corruption 0% Temperature Cool (0) Movement Rolling (110) Ox2 Location -9/Materials Parts ------- > --- POWER (1) -------- Reinforced Ion Engine > --- PROPULSION (2) --- Wheel Wheel > --- UTILITY (4) ------ Heat Sink Large Storage Unit Seismic Detector Hardened Light Armor Plating > --- WEAPON (2) ------- Advanced Beam Cannon Grenade Launcher > --- INVENTORY (15) --- Reinforced Ion Engine Reinforced Ion Engine Medium Storage Unit Medium Battery (150) Large Matter Pod (91) ECM Suite Weapon Shielding Hardened Light Armor Plating Hardened Light Armor Plating Hardened Light Armor Plating Advanced Beam Cannon Advanced Beam Cannon Advanced Beam Cannon Light Assault Rifle Peak State ------------ > --- POWER ------------ Reinforced Ion Engine > --- PROPULSION ------- Wheel Wheel > --- UTILITY ---------- Heat Sink Large Storage Unit Seismic Detector Hardened Light Armor Plating > --- WEAPON ----------- Advanced Beam Cannon Grenade Launcher > --- INVENTORY -------- Reinforced Ion Engine Reinforced Ion Engine Medium Storage Unit Medium Battery Large Matter Pod Weapon Shielding Hardened Light Armor Plating Hardened Light Armor Plating Hardened Light Armor Plating Advanced Beam Cannon Advanced Beam Cannon Advanced Beam Cannon Light Assault Rifle [Rating: 15] Favorites ----------- Power Reinforced Ion Engine Engine Reinforced Ion Engine Propulsion Wheel Wheel Wheel Utility Heat Sink Device Heat Sink Storage Large Storage Unit Protection Hardened Light Armor Plating Weapon Advanced Beam Cannon Energy Cannon Advanced Beam Cannon Ballistic Gun Light Assault Rifle Launcher Grenade Launcher Build | -11 -10 -9 ------- Run | Yrd Mat Mat Slots Evolved 2 | . . 2 Power . | . . . Propulsion . | . . . Utility 2 | . . 2 Weapon . | . . . Parts Attached 16 | 5 9 2 Power 2 | 1 1 . Engine 2 | 1 1 . Core . | . . . Reactor . | . . . Propulsion 3 | 2 1 . Treads . | . . . Leg . | . . . Wheel 3 | 2 1 . Hover . | . . . Flight . | . . . Utility 7 | 1 4 2 Device 2 | . 1 1 Storage 3 | 1 2 . Processor . | . . . Hackware . | . . . Protection 2 | . 1 1 Artifact . | . . . Weapon 4 | 1 3 . Energy Gun . | . . . Energy Cannon 2 | . 2 . Ballistic Gun 1 | 1 . . Ballistic Cannon . | . . . Launcher 1 | . 1 . Special Weapon . | . . . Impact Weapon . | . . . Slashing Weapon . | . . . Piercing Weapon . | . . . Special Melee Weapon . | . . . Unidentified Prototypes 1 | . 1 . Parts Lost 1 | . 1 . Power . | . . . Propulsion 1 | . 1 . Utility . | . . . Weapon . | . . . Highest Loss Streak 1 | . 1 . To Critical Strikes . | . . . Average Backups 10 | 3 11 13 Power 2 | . 2 2 Propulsion . | 1 . . Utility 5 | . 5 7 Weapon 2 | 1 2 4 Tool/Special . | . . . Unused Backups 18 | . 8 10 Power 4 | . 2 2 Propulsion 4 | . 4 . Utility 5 | . . 5 Weapon 5 | . 2 3 Tool/Special . | . . . Average Slot Usage (%) 97 | . 97 97 Engine 13 | . 14 11 Wheel 26 | . 26 22 Device 11 | . 10 22 Storage 13 | . 14 11 Protection 3 | . 2 8 Energy Cannon 23 | . 24 11 Launcher 1 | . 1 11 Peak Build Rating 15 | 5 14 15 Average Rating 12 | 3 13 14 On Entrance 5 | . 5 12 Avg Prop Armor Cover (%) . | . . . Naked Turns . | . . . Heaviest Build 44 | 11 39 44 Greatest Support 20 | 20 20 20 Greatest Overweight (x) 2 | . 2 2 Average Overweight (x) . | . . 2 Largest Inventory Capacity 15 | 8 15 15 Average Capacity 11 | 7 12 15 Most Carried 15 | 8 15 14 Average Carried 10 | 4 11 13 Final Capacity 15 | 8 15 15 Final Carried 15 | 7 15 14 Class Distribution -------------------- 100% | Mutant Dominant Class ---------------- Mutant | -10/Materials Mutant | -9/Materials Resources | -11 -10 -9 ----------- Run | Yrd Mat Mat Matter Collected 464 | 201 263 . Remotely . | . . . Salvage Created 378 | . 287 91 Parts 21 | . 15 6 Haulers Intercepted . | . . . Recyclers Shooed . | . . . Parts Field Recycled . | . . . Retrieved Matter . | . . . Parts Self-Destructed . | . . . Prevented . | . . . Parts Restored . | . . . Kills | -11 -10 -9 ------- Run | Yrd Mat Mat Combat Hostiles Destroyed 12 | . 9 3 Cannons 6 | . 6 . AOE 5 | . 2 3 Classes Destroyed 5 | . 4 1 Worker 1 | . 1 . Tunneler 1 | . . 1 Operator 1 | . 1 . Swarmer 3 | . 3 . Grunt 9 | . 6 3 Best Kill Streak 4 | . 4 4 Combat Bots Only 3 | . 3 3 Max Kills in Single Turn 2 | . 2 2 Gunslinging . | . . . Exploded 2 | . 2 1 Melee . | . . . Uniques/NPCs Destroyed . | . . . Combat | -11 -10 -9 -------- Run | Yrd Mat Mat Hostile Shots Fired 31 | . 26 5 Missed 6 | . 5 1 Hits 25 | . 21 4 Projectile 25 | . 21 4 Damage Taken 357 | . 301 56 Core 137 | . 137 . Absorbed by Shields . | . . . Regen/Repaired (Parts) 33 | . 33 . Core Remaining (%) 72 | 100 45 . Volleys Fired 27 | . 22 5 Largest 2 | . 2 1 Hottest 136 | . 136 30 Shots Fired 47 | . 42 5 Gun . | . . . Cannon 40 | . 40 . Launcher 7 | . 2 5 Special . | . . . Kinetic . | . . . Thermal 40 | . 40 . Explosive 7 | . 2 5 Electromagnetic . | . . . Robot Hit Streak 4 | . 4 2 Robot Miss Streak 5 | . 5 1 Penetration Max . | . . . Secondary Targets . | . . . Shots Hit Robots 19 | . 18 1 Core Hits 18 | . 10 8 Critical Kills 1 | . 1 . Critical Parts Destroyed . | . . . Critical Strikes 1 | . 1 . Meltdown 1 | . 1 . Melee Attacks . | . . . Impact . | . . . Slashing . | . . . Piercing . | . . . Sneak Attacks . | . . . Combat Hostiles . | . . . Follow-up Attacks . | . . . Damage Inflicted 945 | . 640 305 Guns . | . . . Cannons 348 | . 348 . Explosions 590 | . 292 298 Melee . | . . . Ramming 7 | . . 7 Kinetic . | . . . Thermal 541 | . 541 . Explosive 397 | . 99 298 Electromagnetic . | . . . Impact . | . . . Slashing . | . . . Piercing . | . . . Highest Corruption 2 | . 2 . Average Corruption 1 | . 1 . Corruption Purged . | . . . Corruption Blocked . | . . . Effects 2 | . 2 . Matter Fused 1 | . 1 . Data Loss (minor) 1 | . 1 . Overload Shots . | . . . Overflow Damage 117 | . 107 10 Projectiles 17 | . 17 . Explosions 100 | . 90 10 Melee . | . . . Knockbacks . | . . . Impact . | . . . Kinetic . | . . . Secondary . | . . . Self-Inflicted Damage 103 | . 100 3 Shots 1 | . 1 . Rammed 1 | . . 1 Targets Rammed 1 | . . 1 Kicked . | . . . Crushed . | . . . Highest Temperature 442 | . 442 . Average Temperature 189 | . 189 . Received Heat Transfer 54 | . 27 27 Effects 4 | . 4 . Energy Bleed 1 | . 1 . Damage (minor) 3 | . 3 . Siege Activations . | . . . Martial Activations . | . . . Shielding Activations . | . . . Robots Disrupted . | . . . Combat Hostiles . | . . . Robots Corrupted . | . . . Combat Hostiles . | . . . Parts Fried . | . . . Impact Corruptions . | . . . Robots Melted 1 | . 1 . Combat Hostiles 1 | . 1 . Parts Melted 1 | . 1 . Heat Transferred 729 | . 729 . Parts Sabotaged . | . . . Parts Stolen . | . . . Parts Stripped . | . . . Power Chain Reactions . | . . . Alert | -11 -10 -9 ------- Run | Yrd Mat Mat Maximum Alert Level . | . . . Low Security (%) 100 | 100 100 100 Level 1 . | . . . Level 2 . | . . . Level 3 . | . . . Level 4 . | . . . Level 5 . | . . . High Security . | . . . Max Security . | . . . Peak Influence 164 | . 164 99 Initial 18 | . . 18 Average 57 | . 61 61 Influence Increases 454 | . 363 91 Destroy 0b10 Robot/C 240 | . 180 60 Destroy 0b10 Robot/NC 15 | . 10 5 Destroy Leader 50 | . 40 10 Successful Hack 14 | . 14 . Disable Machine 15 | . 15 . Destroy Structure 60 | . 44 16 Lose Combat Pursuer 60 | . 60 . Influence Decreases 365 | . 319 46 Entered New Map 26 | . . 26 Time Decay 231 | . 211 20 Lost Part 10 | . 10 . Purge Threat 98 | . 98 . Squads Dispatched 3 | . 3 . Investigation 1 | . 1 . Extermination . | . . . Reinforcement 2 | . 2 . Assault . | . . . Garrison . | . . . Intercept . | . . . Searches Triggered . | . . . Construction Impeded . | . . . Haulers Reinforced . | . . . Active Scanning Responses . | . . . Cargo Convoy Interrupts . | . . . Stealth | -11 -10 -9 --------- Run | Yrd Mat Mat Distress Signals 1 | . 1 . Communications Jammed . | . . . Distress Signals . | . . . Times Spotted 20 | . 17 3 Peak Tracking Total 4 | . 4 4 Tactical Retreats 2 | . 2 . Traps | -11 -10 -9 ------- Run | Yrd Mat Mat Traps Triggered 2 | . 2 . Indirectly . | . . . Trap Hack Attempts . | . . . Triggered . | . . . Disarmed . | . . . Reprogrammed . | . . . Reused . | . . . Traps Extracted . | . . . Installed . | . . . Triggered . | . . . Machines | -11 -10 -9 ---------- Run | Yrd Mat Mat Machines Disabled 1 | . 1 . Max in Single Turn 1 | . 1 . Machines Repaired . | . . . Machines Dismantled . | . . . Machines Sabotaged . | . . . Overloaded Fab Kills . | . . . Hacking | -11 -10 -9 --------- Run | Yrd Mat Mat Machines Accessed 4 | . 4 . Terminals 3 | . 3 . Fabricators . | . . . Repair Stations 1 | . 1 . Recycling Units . | . . . Scanalyzers . | . . . Garrison Access . | . . . Total Hacks 8 | . 8 . Successful 5 | . 5 . Failed 3 | . 3 . Catastrophic 2 | . 2 . Database Lockouts . | . . . Manual . | . . . Terminals 5 | . 5 . Fabricators . | . . . Repair Stations 3 | . 3 . Recycling Units . | . . . Scanalyzers . | . . . Garrison Access . | . . . Terminal Hacks 3 | . 3 . Unreport Threat 1 | . 1 . Dispatch Records 1 | . 1 . Recall Investigation 1 | . 1 . Fabricator Hacks . | . . . Repair Station Hacks 2 | . 2 . Scan Component 1 | . 1 . Repair 1 | . 1 . Recycling Unit Hacks . | . . . Scanalyzer . | . . . Garrison Access Hacks . | . . . Unauthorized Hacks . | . . . Terminals . | . . . Fabricators . | . . . Repair Stations . | . . . Recycling Units . | . . . Scanalyzers . | . . . Garrison Access . | . . . Data Cores Recovered . | . . . Used . | . . . Hacking Detections 2 | . 2 . Full Trace Events 2 | . 2 . Feedback Events . | . . . Feedback Blocked . | . . . Robot Schematics Acquired . | . . . Robots Built . | . . . Authchips . | . . . Time . | . . . Total Robot Build Rating . | . . . Part Schematics Acquired . | . . . Parts Built . | . . . Authchips . | . . . Time . | . . . Total Part Build Rating . | . . . Part Studies Acquired . | . . . Parts Repaired 1 | . 1 . Time 26 | . 26 . Parts Recycled . | . . . Recycled Matter . | . . . Retrieved Matter . | . . . Retrieved Components . | . . . Parts Scanalyzed . | . . . Part Schematics Acquired . | . . . Parts Damaged . | . . . Bothacking | -11 -10 -9 ------------ Run | Yrd Mat Mat Used RIF Installer . | . . . Robots Hacked . | . . . Non-combat . | . . . Combat . | . . . Robot Hacks Applied . | . . . Relay Couplers Released . | . . . Fabnet Peak Effective % . | . . . Robots Rewired . | . . . Allies Hacked . | . . . Hacks Repelled . | . . . Allies | -11 -10 -9 -------- Run | Yrd Mat Mat Total Allies . | . . . Largest Group . | . . . Highest-Rated Group . | . . . Highest-Rated Ally . | . . . Total Orders . | . . . Ally Attacks . | . . . Total Damage . | . . . Kills . | . . . Allies Corrupted . | . . . Allies Melted . | . . . Intel | -11 -10 -9 ------- Run | Yrd Mat Mat Active Infowar (turns) 41 | . . 41 Seismic 41 | . . 41 Robot Analysis Total . | . . . Derelict Logs Recovered . | . . . Drone Launches . | . . . Drone Recoveries . | . . . Exploration | -11 -10 -9 ------------- Run | Yrd Mat Mat Turns Passed 652 | 46 565 41 Spaces Moved 514 | 40 455 19 Core 7 | 7 . . Treads . | . . . Legs . | . . . Wheels 507 | 33 455 19 Hover . | . . . Flight . | . . . Fastest Speed 50 | 50 80 110 Average Speed 93 | 74 94 110 Slowest Speed 110 | 80 110 110 Overloaded Moves . | . . . Propulsion Burnouts . | . . . Robots Hopped . | . . . Potential Cave-ins . | . . . Cave-ins Triggered . | . . . Exploration Rate (%) 25 | 3 69 4 Regions Visited 2 Branch Regions . Pre-discovered Areas . | . . . Known Exits Taken . | . . . Unknown Exits Taken 2 | 1 1 . Scrap Searched . | . . . Spaces Dug . | . . . Terrain Destroyed 72 | . 48 24 Melee . | . . . Projectile . | . . . AOE 72 | . 48 24 Terrain Rammed . | . . . Walls Destroyed . | . . . Machines Disabled . | . . . Actions | -11 -10 -9 --------- Run | Yrd Mat Mat Total 639 | 55 550 34 Wait 42 | . 36 6 Move 512 | 39 454 19 Hop . | . . . Pick Up 28 | 11 16 1 Fast Attach 6 | 1 5 . Attach 6 | 4 . 2 Detach . | . . . Swap 5 | . 5 . Drop 12 | . 12 . Fire 27 | . 22 5 Melee . | . . . Ram 1 | . . 1 Kick . | . . . Crush . | . . . Escape Stasis . | . . . Rewire . | . . . Trap . | . . . Miscellaneous . | . . . Route ------- -11/Scrapyard -10/Materials (discovered 2 exits: [*Mat] / [*Min]) -9/Materials History --------- Turn | Location | Event 15 | -11/Scrapyard | Discovered new exit (range 16) 47 | -11/Scrapyard | Entered Materials 311 | -10/Materials | Build established: Mutant 370 | -10/Materials | Discovered new exit (range 13) 564 | -10/Materials | Discovered new exit (range 16) 569 | -10/Materials | Core integrity fell below 50% 605 | -10/Materials | Repaired Wheel 612 | -10/Materials | Entered another Materials area 612 | -9/Materials | Evolved 2 slots: Utility x2 653 | -9/Materials | Self-destructed Last Messages --------------- 00595_ System corrupted: Matter fused (-6). 00596_ R-06 Scavenger collects Aluminum Leg. 00599_ R-06 Scavenger collects Sml. Laser. 00605_ Repair station completes Wheel repairs. 00605_ Acquired Wheel. 00608_ Acquired 21 matter. 00609_ Acquired 23 matter. 00610_ U-05 Engineer lays Concrete. PARAMETERS=UTILITY+2 LOCATION=UNKNOWN GOAL=ESCAPE 00613_ T-07 Excavator is excavating. 00620_ Slammed into T-07 Excavator. 00628_ G-34 Mercenary destroyed. 00628_ Destroyed Mining Laser. 00630_ G-47 Trooper destroyed. 00630_ T-07 Excavator destroyed. 00636_ G-34 Mercenary destroyed. 00637_ The unstable cave ceiling collapses. 00652_ Acquired ECM Suite. Map ----- +----------------------------------------------------+ | ?????????????????????????????????????? | | ?????????????????????????????????????? | | ?????????????????????????????????????? | | ?????????????????????????????????????? | | ?????????????????????????????????????? | | ?????????????????????????????????????? | | ?????????????????????????????????????? | | ?????????????????????????????????????? | | ?????????????????????????????????????? | | ?????????????????????????????????????? | | ?????????????????????????????????????? | | ?????????????????????????????????????? | | ?????????????????????????????????????? | | ?????????????????????????????????????? | | ?????????????????????????????????????? | | ?????????????????????????????????????? | | ?????????????????????????????#####???? | | ?????????????????????????????# #???? | | ???????????????????????????### #???? | | ???????????????????????????# # #???? | | ???????????????????????????# #???? | | ???????????????????????????### #???? | | ?????????????????????????????# #???? | | ?????????????????????????????# #???? | | ??????????????????????######## #???? | | ??????????????????????# @ # #???? | | ??????????????????????# ###?? | | ??????????????????????# """ #?? | | ??????????????????????# """ #? | | ??????????????????????# """ ##? | | ??????????????????????# * #? | | ??????????????????????###### % ##? | | ?????????????????????????? [ * #?? | | ????????????????????????? # #?? | | ????????????????????????"" + ###?? | | ???????????????????????""" # #???? | | ????????????????????????"" # #???? | | ???????????????????????? # #???? | | ????????????????????????###### ???? | | ?????????????????????????????# "???? | | ?????????????????????????????# #???? | | ?????????????????????????????# #???? | | ?????????????????????????????? ????? | | ?????????????????????????????????????? | | ?????????????????????????????????????? | | ?????????????????????????????????????? | | ?????????????????????????????????????? | | ?????????????????????????????????????? | | ?????????????????????????????????????? | | ?????????????????????????????????????? | +----------------------------------------------------+ Best States ------------- Heat Dissipation 38 Energy Generation 12 Energy Capacity 265 Matter Stores 300 Matter Capacity 300 Sight Range 16 Terrain Scan Density 10 Armor Coverage 150 Evasion (%) 44 Item Schematics ----------------- None Robot Schematics ------------------ None Fabricated ------------ Nothing Repaired ---------- Wheel | 17% | -10/Materials Studied --------- None Alien Tech Used ----------------- None Achievements -------------- None Challenges ------------ None Game ------ Seed ChromionPotentialHoverbase Manual? 0 Play Time 00:12:09 Cumulative 55.9 hours Start 2025.12.13 @ 16:08:10 End 2025.12.13 @ 16:20:37 Sessions 1 Manual Loads 0 Difficulty Rogue Special Mode None Game No. 91 Rogue 91 Adventurer 0 Explorer 0 Win Type - Total 0 Types 0/0/0/0/0/0/0/0/0/0 Lore% 15 Gallery% 30 Achievement% 20 Wizard Run 0 Options --------- Layout 1 ASCII 1 Keyboard 0 Movement Numpad Keybinds 0 Fullscreen 1 Font 24/Cog Map View 50x35 Zoom Use 0% Tactical HUD 1 Map Filters NONE Filters NONE Steam 0 RUN: e957149d-b374-470e-8238-715d9ca8e1de